[Event "Early-Titled-Tuesday-Blitz-February-13-2024"]
[Site "Chess.com"]
[Date "2024.02.13"]
[Round "4"]
[White "RantomOpening"]
[Black "abelmat"]
[Result "1-0"]
[WhiteElo "2484"]
[BlackElo "2085"]
[TimeControl "180+1"]
[EndTime "8:43:05 PST"]
[Termination "RantomOpening won on time"]

1. c4 {[%clk 0:03:00.6]} 1... Nf6 {[%clk 0:02:59]} 2. Nf3 {[%clk 0:03:00.6]}
2... e6 {[%clk 0:02:59.4]} 3. Nc3 {[%clk 0:03:00.8]} 3... d5 {[%clk 0:03:00.3]}
4. e3 {[%clk 0:02:57.8]} 4... Be7 {[%clk 0:02:59.5]} 5. b3 {[%clk 0:02:58]} 5...
O-O {[%clk 0:02:58.5]} 6. Bb2 {[%clk 0:02:58.2]} 6... b6 {[%clk 0:02:58.9]} 7.
g3 {[%clk 0:02:58.6]} 7... Bb7 {[%clk 0:02:59.2]} 8. Bg2 {[%clk 0:02:59.2]} 8...
Nbd7 {[%clk 0:02:59.5]} 9. d4 {[%clk 0:02:59.6]} 9... c5 {[%clk 0:02:59.7]} 10.
O-O {[%clk 0:02:58.7]} 10... Rc8 {[%clk 0:02:57.3]} 11. cxd5 {[%clk 0:02:58.4]}
11... Nxd5 {[%clk 0:02:55.9]} 12. Rc1 {[%clk 0:02:55.5]} 12... Nxc3 {[%clk
0:02:52.7]} 13. Bxc3 {[%clk 0:02:54.2]} 13... cxd4 {[%clk 0:02:51.9]} 14. Qxd4
{[%clk 0:02:47.8]} 14... Bf6 {[%clk 0:02:48.1]} 15. Qd2 {[%clk 0:02:47.1]} 15...
Bxc3 {[%clk 0:02:44.5]} 16. Rxc3 {[%clk 0:02:48]} 16... Rxc3 {[%clk 0:02:41.4]}
17. Qxc3 {[%clk 0:02:48.9]} 17... Bd5 {[%clk 0:02:24.2]} 18. Nd4 {[%clk
0:02:47]} 18... Bxg2 {[%clk 0:02:22.7]} 19. Kxg2 {[%clk 0:02:47.9]} 19... Nc5
{[%clk 0:02:19.6]} 20. Nf3 {[%clk 0:02:40.8]} 20... a5 {[%clk 0:02:12]} 21. Qc4
{[%clk 0:02:37]} 21... h6 {[%clk 0:02:05.7]} 22. Qb5 {[%clk 0:02:35.8]} 22...
Qd6 {[%clk 0:02:04.5]} 23. Nd4 {[%clk 0:02:22]} 23... Rc8 {[%clk 0:01:45]} 24.
Rd1 {[%clk 0:02:19.6]} 24... Qd5+ {[%clk 0:01:40.8]} 25. Kg1 {[%clk 0:02:18.1]}
25... Ne4 {[%clk 0:01:28.5]} 26. Qxd5 {[%clk 0:02:17.5]} 26... exd5 {[%clk
0:01:29.4]} 27. f3 {[%clk 0:02:11.2]} 27... Nf6 {[%clk 0:01:25.4]} 28. Rd2
{[%clk 0:02:05.2]} 28... Kf8 {[%clk 0:01:20.9]} 29. Rc2 {[%clk 0:01:59.8]} 29...
Rxc2 {[%clk 0:01:18.5]} 30. Nxc2 {[%clk 0:02:00.7]} 30... Ke7 {[%clk 0:01:18.6]}
31. Kf2 {[%clk 0:02:01]} 31... Kd6 {[%clk 0:01:18.4]} 32. Nd4 {[%clk 0:02:01.3]}
32... g6 {[%clk 0:01:11.9]} 33. Ke2 {[%clk 0:02:01.7]} 33... Kc5 {[%clk
0:01:10.8]} 34. Kd3 {[%clk 0:02:02.2]} 34... Kb4 {[%clk 0:01:09.1]} 35. Nc2+
{[%clk 0:02:02.4]} 35... Kc5 {[%clk 0:01:08.3]} 36. a3 {[%clk 0:02:02.7]} 36...
b5 {[%clk 0:01:07.8]} 37. b4+ {[%clk 0:02:02.6]} 37... axb4 {[%clk 0:01:07.5]}
38. axb4+ {[%clk 0:02:03.5]} 38... Kd6 {[%clk 0:01:05.7]} 39. Nd4 {[%clk
0:02:03.3]} 39... Kc7 {[%clk 0:00:38.2]} 40. Nxb5+ {[%clk 0:02:04.2]} 40... Kb6
{[%clk 0:00:39.1]} 41. Nc3 {[%clk 0:02:05]} 41... Kc6 {[%clk 0:00:38.1]} 42. Kd4
{[%clk 0:02:05.9]} 42... h5 {[%clk 0:00:34.9]} 43. b5+ {[%clk 0:02:06.3]} 43...
Kd6 {[%clk 0:00:32.5]} 44. b6 {[%clk 0:02:06.6]} 44... Kc6 {[%clk 0:00:31]} 45.
b7 {[%clk 0:02:06.3]} 45... Kxb7 {[%clk 0:00:30]} 46. Nxd5 {[%clk 0:02:05.8]}
46... Nd7 {[%clk 0:00:28.6]} 47. Ke4 {[%clk 0:02:03]} 47... Kc6 {[%clk
0:00:27.4]} 48. Nc3 {[%clk 0:02:01.1]} 48... Kd6 {[%clk 0:00:26.5]} 49. Kf4
{[%clk 0:02:00.7]} 49... Ke6 {[%clk 0:00:23.5]} 50. Ne4 {[%clk 0:02:01.1]} 50...
Nb6 {[%clk 0:00:17.7]} 51. Ng5+ {[%clk 0:02:01]} 51... Ke7 {[%clk 0:00:17.5]}
52. e4 {[%clk 0:02:00.7]} 52... Nc4 {[%clk 0:00:17.6]} 53. Nh3 {[%clk
0:01:59.9]} 53... f6 {[%clk 0:00:16.6]} 54. Nf2 {[%clk 0:01:59.5]} 54... Nd2
{[%clk 0:00:16.1]} 55. Ke3 {[%clk 0:01:59.1]} 55... Nc4+ {[%clk 0:00:16.1]} 56.
Ke2 {[%clk 0:01:57.7]} 56... Ke6 {[%clk 0:00:13.7]} 57. Nd3 {[%clk 0:01:58.6]}
57... Nd6 {[%clk 0:00:12.5]} 58. Nf4+ {[%clk 0:01:58.8]} 58... Kf7 {[%clk
0:00:12.2]} 59. Kd3 {[%clk 0:01:59]} 59... Ne8 {[%clk 0:00:11.6]} 60. h4 {[%clk
0:01:57.9]} 60... Nd6 {[%clk 0:00:11.2]} 61. g4 {[%clk 0:01:58.2]} 61... Ne8
{[%clk 0:00:10.2]} 62. gxh5 {[%clk 0:01:57.9]} 62... gxh5 {[%clk 0:00:09.1]} 63.
Nxh5 {[%clk 0:01:58.8]} 63... Kg6 {[%clk 0:00:08.6]} 64. Nf4+ {[%clk 0:01:59.2]}
64... Kf7 {[%clk 0:00:08.4]} 65. Kd4 {[%clk 0:02:00.1]} 65... Nd6 {[%clk
0:00:08]} 66. Kd5 {[%clk 0:02:00.3]} 66... Ne8 {[%clk 0:00:07.8]} 67. h5 {[%clk
0:02:00.7]} 67... Ng7 {[%clk 0:00:05.1]} 68. h6 {[%clk 0:02:00.8]} 68... Ne8
{[%clk 0:00:04.3]} 69. Kc6 {[%clk 0:01:58.5]} 69... Kg8 {[%clk 0:00:02]} 70. Kd7
{[%clk 0:01:57.4]} 70... f5 {[%clk 0:00:01.5]} 71. e5 {[%clk 0:01:55.4]} 1-0

[Event "Early-Titled-Tuesday-Blitz-February-13-2024"]
[Site "Chess.com"]
[Date "2024.02.13"]
[Round "4"]
[White "Irishchessman16"]
[Black "PepeCuenca"]
[Result "1-0"]
[WhiteElo "2528"]
[BlackElo "2714"]
[TimeControl "180+1"]
[EndTime "8:43:06 PST"]
[Termination "Irishchessman16 won on time"]

1. d4 {[%clk 0:03:00.9]} 1... Nf6 {[%clk 0:02:56.3]} 2. c4 {[%clk 0:03:01.5]}
2... g6 {[%clk 0:02:55.9]} 3. h4 {[%clk 0:02:59.1]} 3... c5 {[%clk 0:02:54.1]}
4. d5 {[%clk 0:02:58.8]} 4... b5 {[%clk 0:02:54.5]} 5. cxb5 {[%clk 0:02:57.6]}
5... a6 {[%clk 0:02:54.8]} 6. e3 {[%clk 0:02:54.8]} 6... Bg7 {[%clk 0:02:50.9]}
7. Nc3 {[%clk 0:02:53.1]} 7... axb5 {[%clk 0:02:44.5]} 8. Bxb5 {[%clk
0:02:50.9]} 8... Ba6 {[%clk 0:02:39]} 9. Bxa6 {[%clk 0:02:33]} 9... Rxa6 {[%clk
0:02:32.5]} 10. Nf3 {[%clk 0:02:29.8]} 10... d6 {[%clk 0:02:31.4]} 11. O-O
{[%clk 0:02:23.9]} 11... O-O {[%clk 0:02:29.5]} 12. e4 {[%clk 0:02:12.9]} 12...
Nbd7 {[%clk 0:02:28.2]} 13. Qe2 {[%clk 0:02:04.6]} 13... Qa8 {[%clk 0:02:23.6]}
14. Re1 {[%clk 0:01:32.4]} 14... Ng4 {[%clk 0:02:12.8]} 15. h5 {[%clk
0:01:24.9]} 15... Nge5 {[%clk 0:01:36.8]} 16. Nh2 {[%clk 0:01:05.1]} 16... Nb6
{[%clk 0:01:31.6]} 17. h6 {[%clk 0:01:02.2]} 17... Bh8 {[%clk 0:01:28.4]} 18. f4
{[%clk 0:00:54]} 18... Nec4 {[%clk 0:01:23]} 19. Nf3 {[%clk 0:00:53.5]} 19...
Na5 {[%clk 0:00:55.4]} 20. Rb1 {[%clk 0:00:21.9]} 20... Ra7 {[%clk 0:00:51.5]}
21. Nb5 {[%clk 0:00:16.7]} 21... Rd7 {[%clk 0:00:47.5]} 22. b3 {[%clk
0:00:16.3]} 22... Nb7 {[%clk 0:00:37]} 23. a4 {[%clk 0:00:14.4]} 23... c4 {[%clk
0:00:30.6]} 24. Be3 {[%clk 0:00:13.9]} 24... Qa6 {[%clk 0:00:28.1]} 25. bxc4
{[%clk 0:00:11.2]} 25... Rc8 {[%clk 0:00:26.7]} 26. Rec1 {[%clk 0:00:10.2]}
26... Na5 {[%clk 0:00:19.7]} 27. c5 {[%clk 0:00:09.6]} 27... dxc5 {[%clk
0:00:18]} 28. Rxc5 {[%clk 0:00:08.7]} 28... Rxc5 {[%clk 0:00:17.6]} 29. Bxc5
{[%clk 0:00:09]} 29... Nxa4 {[%clk 0:00:18.2]} 30. Bd4 {[%clk 0:00:09]} 30...
Bxd4+ {[%clk 0:00:11.5]} 31. Nfxd4 {[%clk 0:00:08.8]} 31... Qb6 {[%clk
0:00:08.4]} 32. Kh1 {[%clk 0:00:06.6]} 32... Nc5 {[%clk 0:00:08]} 33. Nc3 {[%clk
0:00:06.4]} 33... Qa7 {[%clk 0:00:07.1]} 34. Qb5 {[%clk 0:00:06]} 34... f6
{[%clk 0:00:03.2]} 35. Nc6 {[%clk 0:00:05.3]} 35... Nxc6 {[%clk 0:00:01.3]} 36.
dxc6 {[%clk 0:00:05.2]} 36... Rc7 {[%clk 0:00:01.9]} 37. Qc4+ {[%clk 0:00:05.1]}
37... Kf8 {[%clk 0:00:01.1]} 38. Nb5 {[%clk 0:00:05.1]} 1-0

[Event "Early-Titled-Tuesday-Blitz-February-13-2024"]
[Site "Chess.com"]
[Date "2024.02.13"]
[Round "4"]
[White "pooh2012"]
[Black "Suleyman_Chess06"]
[Result "0-1"]
[WhiteElo "2567"]
[BlackElo "2772"]
[TimeControl "180+1"]
[EndTime "8:43:07 PST"]
[Termination "Suleyman_Chess06 won on time"]

1. Nf3 {[%clk 0:03:00.9]} 1... d5 {[%clk 0:02:59.9]} 2. g3 {[%clk 0:03:00.4]}
2... Nf6 {[%clk 0:03:00.4]} 3. Bg2 {[%clk 0:03:00.3]} 3... e6 {[%clk 0:03:01.1]}
4. c4 {[%clk 0:02:58.6]} 4... dxc4 {[%clk 0:03:00.2]} 5. Na3 {[%clk 0:02:50.7]}
5... Bxa3 {[%clk 0:02:59.1]} 6. bxa3 {[%clk 0:02:50.1]} 6... O-O {[%clk
0:02:59.8]} 7. Qc2 {[%clk 0:02:47.8]} 7... a6 {[%clk 0:02:59.5]} 8. a4 {[%clk
0:02:43.4]} 8... b5 {[%clk 0:02:58.8]} 9. Ne5 {[%clk 0:02:39.9]} 9... Ra7 {[%clk
0:02:59.1]} 10. O-O {[%clk 0:02:33.9]} 10... Bb7 {[%clk 0:02:58.5]} 11. Bxb7
{[%clk 0:01:52.5]} 11... Rxb7 {[%clk 0:02:59.4]} 12. axb5 {[%clk 0:01:50.4]}
12... axb5 {[%clk 0:02:56.3]} 13. a4 {[%clk 0:01:50.7]} 13... c6 {[%clk
0:02:43.4]} 14. Ba3 {[%clk 0:01:38.4]} 14... Re8 {[%clk 0:02:36.7]} 15. Rfb1
{[%clk 0:01:36.6]} 15... Qc7 {[%clk 0:02:22.6]} 16. f4 {[%clk 0:01:15.7]} 16...
Nbd7 {[%clk 0:02:20]} 17. Nf3 {[%clk 0:01:00.3]} 17... Reb8 {[%clk 0:02:09.4]}
18. e4 {[%clk 0:00:49.7]} 18... Qb6+ {[%clk 0:01:42.4]} 19. Kg2 {[%clk
0:00:44.9]} 19... Ng4 {[%clk 0:01:41.3]} 20. Kh3 {[%clk 0:00:19.6]} 20... h5
{[%clk 0:01:27.6]} 21. Bd6 {[%clk 0:00:16.7]} 21... Rd8 {[%clk 0:01:22]} 22. a5
{[%clk 0:00:14.3]} 22... Qf2 {[%clk 0:01:07.6]} 23. Rf1 {[%clk 0:00:13.7]} 23...
Qe2 {[%clk 0:01:07.5]} 24. Rae1 {[%clk 0:00:10.5]} 24... Qd3 {[%clk 0:01:02.8]}
25. Qxd3 {[%clk 0:00:10.1]} 25... cxd3 {[%clk 0:01:03.7]} 26. Ra1 {[%clk
0:00:09.5]} 26... Nb8 {[%clk 0:01:00]} 27. e5 {[%clk 0:00:06.7]} 27... Na6
{[%clk 0:00:57.4]} 28. Nd4 {[%clk 0:00:06.6]} 28... c5 {[%clk 0:00:52.6]} 29.
Nc6 {[%clk 0:00:06.5]} 29... Rdd7 {[%clk 0:00:52.4]} 30. Rfc1 {[%clk 0:00:04.7]}
30... c4 {[%clk 0:00:50.7]} 31. Kg2 {[%clk 0:00:02]} 31... Nh6 {[%clk
0:00:50.5]} 32. h3 {[%clk 0:00:02.4]} 32... Nf5 {[%clk 0:00:50.6]} 33. Bb4
{[%clk 0:00:02.7]} 33... Nd4 {[%clk 0:00:44.3]} 34. Nxd4 {[%clk 0:00:02]} 34...
Rxd4 {[%clk 0:00:45.2]} 35. Bc3 {[%clk 0:00:02.2]} 35... Rd5 {[%clk 0:00:45.1]}
36. Rab1 {[%clk 0:00:02.9]} 36... b4 {[%clk 0:00:43.1]} 37. Bb2 {[%clk
0:00:02.7]} 37... Rc5 {[%clk 0:00:39.1]} 38. Ra1 {[%clk 0:00:02.4]} 38... Rc6
{[%clk 0:00:32.8]} 39. Kf3 {[%clk 0:00:02.2]} 39... Rb5 {[%clk 0:00:32.7]} 40.
Bd4 {[%clk 0:00:02.1]} 40... Rd5 {[%clk 0:00:30.5]} 41. Ke4 {[%clk 0:00:02.2]}
41... b3 {[%clk 0:00:27.4]} 42. Ra4 {[%clk 0:00:01.4]} 42... b2 {[%clk
0:00:20.1]} 0-1

[Event "Early-Titled-Tuesday-Blitz-February-13-2024"]
[Site "Chess.com"]
[Date "2024.02.13"]
[Round "4"]
[White "emeli_chess"]
[Black "Kunalm64"]
[Result "1/2-1/2"]
[WhiteElo "2374"]
[BlackElo "2534"]
[TimeControl "180+1"]
[EndTime "8:43:08 PST"]
[Termination "Game drawn by repetition"]

1. d4 {[%clk 0:03:00.9]} 1... Nf6 {[%clk 0:02:59.2]} 2. c4 {[%clk 0:02:59.8]}
2... e6 {[%clk 0:02:59.5]} 3. Nc3 {[%clk 0:03:00]} 3... Bb4 {[%clk 0:02:59.6]}
4. Qc2 {[%clk 0:03:00.3]} 4... d5 {[%clk 0:02:57.4]} 5. cxd5 {[%clk 0:03:00.1]}
5... Qd6 {[%clk 0:02:56.3]} 6. dxe6 {[%clk 0:02:48.7]} 6... Bxe6 {[%clk
0:02:55.6]} 7. Nf3 {[%clk 0:02:45.8]} 7... O-O {[%clk 0:02:54.5]} 8. e3 {[%clk
0:02:45.5]} 8... c5 {[%clk 0:02:54.3]} 9. Bd2 {[%clk 0:02:40.9]} 9... Nc6 {[%clk
0:02:51.8]} 10. a3 {[%clk 0:02:39.4]} 10... cxd4 {[%clk 0:02:50.3]} 11. Nxd4
{[%clk 0:02:06.9]} 11... Nxd4 {[%clk 0:02:43.8]} 12. exd4 {[%clk 0:02:06.7]}
12... Rfe8 {[%clk 0:02:40.3]} 13. Be3 {[%clk 0:01:59]} 13... Bxc3+ {[%clk
0:02:31.3]} 14. bxc3 {[%clk 0:01:57]} 14... Nd5 {[%clk 0:02:17.6]} 15. Bb5
{[%clk 0:01:50.5]} 15... Bd7 {[%clk 0:01:34.7]} 16. Bxd7 {[%clk 0:01:28.3]}
16... Qxd7 {[%clk 0:01:34.4]} 17. O-O {[%clk 0:01:25.2]} 17... Rac8 {[%clk
0:01:28.5]} 18. Bd2 {[%clk 0:01:22.1]} 18... Nb6 {[%clk 0:01:17.9]} 19. Qd3
{[%clk 0:01:14.6]} 19... h6 {[%clk 0:01:15.5]} 20. Rfe1 {[%clk 0:01:13.1]} 20...
Qd5 {[%clk 0:01:15.3]} 21. Rxe8+ {[%clk 0:01:08.8]} 21... Rxe8 {[%clk
0:01:14.9]} 22. Re1 {[%clk 0:01:09.4]} 22... Rxe1+ {[%clk 0:01:10.3]} 23. Bxe1
{[%clk 0:01:09.5]} 23... Nc4 {[%clk 0:01:10]} 24. a4 {[%clk 0:01:01.3]} 24...
Qe6 {[%clk 0:00:55.5]} 25. Kf1 {[%clk 0:00:44.2]} 25... Qd5 {[%clk 0:00:51.3]}
26. f3 {[%clk 0:00:42.4]} 26... a6 {[%clk 0:00:36.9]} 27. Qe4 {[%clk 0:00:40.4]}
27... b5 {[%clk 0:00:27.7]} 28. Qxd5 {[%clk 0:00:36.7]} 28... Ne3+ {[%clk
0:00:27.1]} 29. Ke2 {[%clk 0:00:36.9]} 29... Nxd5 {[%clk 0:00:27.4]} 30. axb5
{[%clk 0:00:35.7]} 30... axb5 {[%clk 0:00:27.5]} 31. Bd2 {[%clk 0:00:34.4]}
31... f5 {[%clk 0:00:25.2]} 32. Kd3 {[%clk 0:00:33.4]} 32... Kf7 {[%clk
0:00:25.5]} 33. c4 {[%clk 0:00:33.9]} 33... bxc4+ {[%clk 0:00:25.8]} 34. Kxc4
{[%clk 0:00:34.2]} 34... Ke6 {[%clk 0:00:26.3]} 35. Kc5 {[%clk 0:00:34.2]} 35...
h5 {[%clk 0:00:22.9]} 36. h3 {[%clk 0:00:29.6]} 36... f4 {[%clk 0:00:20.1]} 37.
Kc6 {[%clk 0:00:24.8]} 37... h4 {[%clk 0:00:18.9]} 38. Be1 {[%clk 0:00:23.2]}
38... g5 {[%clk 0:00:18.9]} 39. Bd2 {[%clk 0:00:22.5]} 39... Ne7+ {[%clk
0:00:16.5]} 40. Kc5 {[%clk 0:00:21.6]} 40... Nd5 {[%clk 0:00:17.1]} 41. Kc6
{[%clk 0:00:20.6]} 41... Ne3 {[%clk 0:00:14.2]} 42. Ba5 {[%clk 0:00:15.6]} 42...
Nd5 {[%clk 0:00:11.9]} 43. Bd2 {[%clk 0:00:14.1]} 1/2-1/2

[Event "Early-Titled-Tuesday-Blitz-February-13-2024"]
[Site "Chess.com"]
[Date "2024.02.13"]
[Round "4"]
[White "marsofsilva"]
[Black "rhungaski"]
[Result "0-1"]
[WhiteElo "2091"]
[BlackElo "2486"]
[TimeControl "180+1"]
[EndTime "8:43:08 PST"]
[Termination "rhungaski won on time"]

1. e4 {[%clk 0:03:00.9]} 1... g6 {[%clk 0:02:56.8]} 2. d4 {[%clk 0:02:59.8]}
2... Bg7 {[%clk 0:02:55.5]} 3. Nf3 {[%clk 0:02:59.8]} 3... d6 {[%clk 0:02:56]}
4. c3 {[%clk 0:02:59.3]} 4... Nd7 {[%clk 0:02:55.1]} 5. Bd3 {[%clk 0:02:56.2]}
5... e5 {[%clk 0:02:54.4]} 6. Nbd2 {[%clk 0:02:55.1]} 6... exd4 {[%clk
0:02:47.8]} 7. cxd4 {[%clk 0:02:55]} 7... Ngf6 {[%clk 0:02:45.1]} 8. O-O {[%clk
0:02:39.8]} 8... O-O {[%clk 0:02:44.5]} 9. Nb1 {[%clk 0:02:39.7]} 9... c5 {[%clk
0:02:41.1]} 10. Nc3 {[%clk 0:02:33.1]} 10... a6 {[%clk 0:02:36.9]} 11. Bf4
{[%clk 0:02:28.5]} 11... cxd4 {[%clk 0:02:24.7]} 12. Nxd4 {[%clk 0:02:27]} 12...
Nh5 {[%clk 0:02:24.5]} 13. Be3 {[%clk 0:02:19.8]} 13... Ne5 {[%clk 0:02:23.3]}
14. Be2 {[%clk 0:02:15.5]} 14... Nf6 {[%clk 0:02:15.4]} 15. h3 {[%clk
0:02:06.6]} 15... Re8 {[%clk 0:02:05.4]} 16. Qd2 {[%clk 0:02:06.5]} 16... b5
{[%clk 0:02:02.1]} 17. Bg5 {[%clk 0:01:51.8]} 17... Bb7 {[%clk 0:01:55.4]} 18.
Rad1 {[%clk 0:01:44.9]} 18... b4 {[%clk 0:01:38.8]} 19. Nd5 {[%clk 0:01:41.9]}
19... Nxe4 {[%clk 0:01:26.7]} 20. Bxd8 {[%clk 0:01:32.9]} 20... Nxd2 {[%clk
0:01:26.5]} 21. Rxd2 {[%clk 0:01:10.8]} 21... Rexd8 {[%clk 0:00:47.2]} 22. Nxb4
{[%clk 0:01:02.1]} 22... a5 {[%clk 0:00:47.3]} 23. Nbc2 {[%clk 0:00:53.1]} 23...
a4 {[%clk 0:00:42.8]} 24. Rfd1 {[%clk 0:00:51.5]} 24... Bh6 {[%clk 0:00:41.5]}
25. Ne3 {[%clk 0:00:46.3]} 25... a3 {[%clk 0:00:35.1]} 26. b3 {[%clk 0:00:38]}
26... Re8 {[%clk 0:00:15.4]} 27. Nb5 {[%clk 0:00:36.2]} 27... Nc6 {[%clk
0:00:07.2]} 28. Nxd6 {[%clk 0:00:24.7]} 28... Rxe3 {[%clk 0:00:07.6]} 29. Nxb7
{[%clk 0:00:11.2]} 29... Re7 {[%clk 0:00:07.6]} 30. Rd7 {[%clk 0:00:10.1]} 30...
Rxe2 {[%clk 0:00:07.6]} 31. Nd6 {[%clk 0:00:05.1]} 31... Rf8 {[%clk 0:00:06.5]}
32. Rc7 {[%clk 0:00:02]} 32... Nb4 {[%clk 0:00:06.6]} 33. Rb7 {[%clk 0:00:01.8]}
33... Nxa2 {[%clk 0:00:06.3]} 34. b4 {[%clk 0:00:02.2]} 34... Nc3 {[%clk
0:00:06]} 35. Rd3 {[%clk 0:00:02]} 35... Re1+ {[%clk 0:00:05.1]} 36. Kh2 {[%clk
0:00:02]} 36... a2 {[%clk 0:00:04.5]} 37. Ra7 {[%clk 0:00:01.6]} 37... Bf4+
{[%clk 0:00:03.8]} 38. g3 {[%clk 0:00:01.3]} 38... Bxd6 {[%clk 0:00:04.3]} 0-1

[Event "Early-Titled-Tuesday-Blitz-February-13-2024"]
[Site "Chess.com"]
[Date "2024.02.13"]
[Round "4"]
[White "lilleper1"]
[Black "AlexeiShirov"]
[Result "1/2-1/2"]
[WhiteElo "2977"]
[BlackElo "2837"]
[TimeControl "180+1"]
[EndTime "8:43:09 PST"]
[Termination "Game drawn by repetition"]

1. e4 {[%clk 0:03:00.9]} 1... e5 {[%clk 0:02:59.5]} 2. Nf3 {[%clk 0:03:01.2]}
2... Nc6 {[%clk 0:02:59.5]} 3. Bb5 {[%clk 0:03:01.7]} 3... a6 {[%clk 0:02:59.3]}
4. Ba4 {[%clk 0:03:01.9]} 4... Nf6 {[%clk 0:02:59.3]} 5. d3 {[%clk 0:03:02.3]}
5... d6 {[%clk 0:02:56.6]} 6. O-O {[%clk 0:02:59]} 6... g6 {[%clk 0:02:56.4]} 7.
c3 {[%clk 0:02:58.2]} 7... Bg7 {[%clk 0:02:56.2]} 8. Re1 {[%clk 0:02:58.4]} 8...
O-O {[%clk 0:02:53.2]} 9. h3 {[%clk 0:02:58.5]} 9... Nh5 {[%clk 0:02:48.7]} 10.
Nbd2 {[%clk 0:02:30.5]} 10... f5 {[%clk 0:02:17.2]} 11. exf5 {[%clk 0:02:18.6]}
11... Nf4 {[%clk 0:02:16.7]} 12. Bb3+ {[%clk 0:02:09.7]} 12... Kh8 {[%clk
0:02:15.4]} 13. f6 {[%clk 0:02:07.7]} 13... Qxf6 {[%clk 0:02:07]} 14. Ne4 {[%clk
0:02:07.2]} 14... Nxh3+ {[%clk 0:02:00.3]} 15. gxh3 {[%clk 0:01:39.1]} 15...
Qxf3 {[%clk 0:01:58.3]} 16. Qxf3 {[%clk 0:01:39]} 16... Rxf3 {[%clk 0:01:55.1]}
17. Ng5 {[%clk 0:01:39.2]} 17... Rf5 {[%clk 0:01:31.7]} 18. Nf7+ {[%clk
0:01:37.2]} 18... Rxf7 {[%clk 0:01:31.7]} 19. Bxf7 {[%clk 0:01:38.1]} 19... Bxh3
{[%clk 0:01:31.6]} 20. Bd5 {[%clk 0:01:37.4]} 20... Rf8 {[%clk 0:01:22.7]} 21.
Be3 {[%clk 0:01:32.4]} 21... Bc8 {[%clk 0:01:16.7]} 22. a4 {[%clk 0:01:16.7]}
22... Ne7 {[%clk 0:01:16.5]} 23. Bh1 {[%clk 0:01:08.8]} 23... Nf5 {[%clk
0:01:16.5]} 24. Bd2 {[%clk 0:01:07.7]} 24... Nh4 {[%clk 0:01:13.3]} 25. a5
{[%clk 0:00:57.8]} 25... Nf3+ {[%clk 0:01:12.6]} 26. Bxf3 {[%clk 0:00:57]} 26...
Rxf3 {[%clk 0:01:12.5]} 27. Re3 {[%clk 0:00:57.6]} 27... Rf7 {[%clk 0:01:12.2]}
28. Rg3 {[%clk 0:00:55.5]} 28... Bf5 {[%clk 0:01:05.6]} 29. Ra4 {[%clk
0:00:53.8]} 29... d5 {[%clk 0:01:00]} 30. Rh4 {[%clk 0:00:49.2]} 30... Kg8
{[%clk 0:00:56.5]} 31. Bg5 {[%clk 0:00:45]} 31... e4 {[%clk 0:00:49.7]} 32. dxe4
{[%clk 0:00:36.3]} 32... Bxe4 {[%clk 0:00:48.8]} 33. Rf4 {[%clk 0:00:19.6]}
33... Be5 {[%clk 0:00:41.1]} 34. Rxf7 {[%clk 0:00:19.1]} 34... Kxf7 {[%clk
0:00:40.8]} 35. Re3 {[%clk 0:00:19.2]} 35... Bd6 {[%clk 0:00:40.2]} 36. f3
{[%clk 0:00:18.8]} 36... Bf5 {[%clk 0:00:36.6]} 37. Re1 {[%clk 0:00:18.1]} 37...
c5 {[%clk 0:00:20.8]} 38. Kf2 {[%clk 0:00:16.2]} 38... d4 {[%clk 0:00:20.1]} 39.
Rd1 {[%clk 0:00:14.2]} 39... d3 {[%clk 0:00:19.8]} 40. Ke3 {[%clk 0:00:12.9]}
40... c4 {[%clk 0:00:19.2]} 41. Kd2 {[%clk 0:00:11.8]} 41... Bc7 {[%clk
0:00:18.2]} 42. Re1 {[%clk 0:00:11.1]} 42... Bd6 {[%clk 0:00:17.5]} 43. Bh6
{[%clk 0:00:09]} 43... Be6 {[%clk 0:00:16.8]} 44. Bg5 {[%clk 0:00:07.7]} 44...
Bd5 {[%clk 0:00:16.9]} 45. Ke3 {[%clk 0:00:07.1]} 45... Bc5+ {[%clk 0:00:15.8]}
46. Kd2 {[%clk 0:00:07.4]} 46... Bd6 {[%clk 0:00:16.4]} 47. Ke3 {[%clk
0:00:07.2]} 47... Bc5+ {[%clk 0:00:17]} 48. Kd2 {[%clk 0:00:07.6]} 48... Bd6
{[%clk 0:00:17.6]} 1/2-1/2

[Event "Early-Titled-Tuesday-Blitz-February-13-2024"]
[Site "Chess.com"]
[Date "2024.02.13"]
[Round "4"]
[White "Beca95"]
[Black "twofoxniel"]
[Result "1-0"]
[WhiteElo "2933"]
[BlackElo "2611"]
[TimeControl "180+1"]
[EndTime "8:43:09 PST"]
[Termination "Beca95 won on time"]

1. d4 {[%clk 0:03:00.9]} 1... d5 {[%clk 0:02:59.5]} 2. Nf3 {[%clk 0:03:01]} 2...
c6 {[%clk 0:02:58.3]} 3. Bf4 {[%clk 0:03:01]} 3... Qb6 {[%clk 0:02:58.4]} 4.
Nbd2 {[%clk 0:03:00.5]} 4... Nf6 {[%clk 0:02:58.4]} 5. c4 {[%clk 0:02:59.2]}
5... Bf5 {[%clk 0:02:45.1]} 6. Qc1 {[%clk 0:02:53.6]} 6... e6 {[%clk 0:02:44.3]}
7. a3 {[%clk 0:02:53.3]} 7... Nbd7 {[%clk 0:02:43.3]} 8. h3 {[%clk 0:02:51]}
8... Be7 {[%clk 0:02:42.9]} 9. e3 {[%clk 0:02:49]} 9... Ne4 {[%clk 0:02:42.7]}
10. b4 {[%clk 0:02:48.3]} 10... O-O {[%clk 0:02:42.2]} 11. Be2 {[%clk
0:02:43.1]} 11... Rfe8 {[%clk 0:02:41.7]} 12. O-O {[%clk 0:02:42.7]} 12... Bf6
{[%clk 0:02:41.6]} 13. Bh2 {[%clk 0:02:42.4]} 13... h6 {[%clk 0:02:33.3]} 14. c5
{[%clk 0:02:42.4]} 14... Qd8 {[%clk 0:02:32.4]} 15. Ne5 {[%clk 0:02:42.9]} 15...
Nxd2 {[%clk 0:02:21.4]} 16. Qxd2 {[%clk 0:02:42.4]} 16... Bxe5 {[%clk
0:02:14.4]} 17. dxe5 {[%clk 0:02:43.3]} 17... f6 {[%clk 0:02:14.7]} 18. exf6
{[%clk 0:02:30.1]} 18... Qxf6 {[%clk 0:02:15.6]} 19. Bd6 {[%clk 0:02:29.7]}
19... a6 {[%clk 0:02:14.8]} 20. a4 {[%clk 0:02:23.7]} 20... Qg6 {[%clk
0:02:05.8]} 21. Kh2 {[%clk 0:02:23.2]} 21... Nf6 {[%clk 0:02:05.7]} 22. f3
{[%clk 0:02:22.9]} 22... e5 {[%clk 0:01:57.4]} 23. b5 {[%clk 0:02:22.3]} 23...
axb5 {[%clk 0:01:57.6]} 24. axb5 {[%clk 0:02:22.9]} 24... Rxa1 {[%clk
0:01:50.2]} 25. Rxa1 {[%clk 0:02:23.8]} 25... Bc8 {[%clk 0:01:50.3]} 26. Ra7
{[%clk 0:02:10.8]} 26... Nh5 {[%clk 0:01:49.3]} 27. g4 {[%clk 0:02:10.1]} 27...
Nf6 {[%clk 0:01:48.4]} 28. bxc6 {[%clk 0:02:07.4]} 28... bxc6 {[%clk 0:01:48.2]}
29. Rc7 {[%clk 0:02:07.6]} 29... e4 {[%clk 0:01:39.1]} 30. f4 {[%clk 0:02:06.4]}
30... Bd7 {[%clk 0:01:25.6]} 31. Qb2 {[%clk 0:01:43.9]} 31... Ra8 {[%clk
0:01:18.6]} 32. Be5 {[%clk 0:01:34.5]} 32... Be8 {[%clk 0:00:53.9]} 33. Bd4
{[%clk 0:01:25.4]} 33... Ra4 {[%clk 0:00:36.7]} 34. Bd1 {[%clk 0:01:21.7]} 34...
Ra8 {[%clk 0:00:35.6]} 35. Kg2 {[%clk 0:01:16]} 35... Nd7 {[%clk 0:00:23.9]} 36.
Bb3 {[%clk 0:00:48.6]} 36... Rb8 {[%clk 0:00:21.4]} 37. f5 {[%clk 0:00:16.6]}
37... Qg5 {[%clk 0:00:17.9]} 38. Rxc6 {[%clk 0:00:17]} 38... Nf6 {[%clk
0:00:06.4]} 39. Bxf6 {[%clk 0:00:17.1]} 39... gxf6 {[%clk 0:00:06.5]} 40. Bxd5+
{[%clk 0:00:17.2]} 40... Kg7 {[%clk 0:00:04]} 41. Rc7+ {[%clk 0:00:17.1]} 41...
Kh8 {[%clk 0:00:03.1]} 42. Qxb8 {[%clk 0:00:16.2]} 1-0